bitfinex/quotes_ETHUSD_20251125
["timestamp","ask_amount","ask_price","bid_price","bid_amount"]
[1764091510127,10.96616577,2940.6,2940.5,0.001]
[1764091510421,10.01498143,2940.6,2940.5,0.001]
[1764091510714,15.94414096,2940.6,2940.5,0.001]
[1764091510887,15.60833696,2940.6,2940.5,0.001]
[1764091511088,15.00007196,2940.6,2940.5,0.001]
[1764091511309,13.89531896,2940.6,2940.5,0.001]
[1764091511513,13.87622696,2940.6,2940.5,0.001]
[1764091511755,14.92922696,2940.6,2940.5,0.001]
[1764091512429,13.60177296,2940.6,2940.5,0.001]
[1764091512631,13.60158707,2940.6,2940.5,0.001]
[1764091512837,9.48528008,2940.6,2940.5,0.001]
[1764091513047,10.56036134,2940.6,2940.5,0.001]
[1764091513238,12.85036134,2940.6,2940.5,0.001]
[1764091513636,10.56036134,2940.6,2940.5,0.001]
[1764091513962,13.02036134,2940.6,2940.5,0.001]
[1764091514778,26.98680934,2940.6,2940.5,0.001]
[1764091515570,26.28401334,2940.6,2940.5,0.001]
[1764091515878,20.25475334,2940.6,2940.5,0.001]
[1764091516278,14.31306934,2940.6,2940.5,0.001]
[1764091516449,10.01773111,2940.5,2940.4,0.001]
[1764091516648,6.92766782,2940.5,2940.4,0.001]
[1764091516851,10.79544999,2940.5,2940.4,0.001]
[1764091517876,5.58239999,2940.5,2940.4,0.001]
[1764091518079,10.83255099,2940.5,2940.4,0.001]
[1764091518450,8.63020099,2940.5,2940.4,0.001]
[1764091518974,5.80339999,2940.5,2940.4,0.001]
[1764091519176,9.26224599,2940.5,2940.4,0.001]
[1764091520081,9.49844599,2940.5,2940.4,0.001]
[1764091520581,0.405504,2940.3,2939.8,0.001]
[1764091520749,0.405504,2940.3,2939.5,0.001]
[1764091520750,1.13109811,2939.7,2939.5,0.001]
[1764091520952,17.90411365,2939.6,2939.5,0.001]
[1764091521174,14.31811365,2939.6,2939.5,0.001]
[1764091521369,9.82878265,2939.6,2939.5,0.001]
[1764091522461,14.43645465,2939.6,2939.5,0.001]
[1764091523787,9.82878265,2939.6,2939.5,0.001]
[1764091523991,12.24463965,2939.6,2939.5,0.001]
[1764091525102,11.92685547,2939.6,2939.5,0.001]
[1764091526466,11.92685547,2939.6,2938.9,0.001]
[1764091526467,9.44672011,2939.3,2938.9,0.001]
[1764091526674,4.39823811,2939.3,2938.9,0.001]
[1764091526873,4.18522011,2939.3,2938.9,0.001]
[1764091527173,6.98376869,2939.3,2938.9,0.001]
[1764091527592,7.20376869,2939.3,2938.9,0.001]
[1764091527902,4.75326869,2939.3,2938.9,0.001]
[1764091529166,9.36250169,2939.3,2938.9,0.001]
[1764091531616,0.91417756,2940.2,2939.2,0.9365]
[1764091531822,0.53615418,2940.1,2939.3,0.4705]
[1764091532117,0.22,2940.0,2939.3,0.9355]
[1764091532573,0.22,2940.0,2939.9,0.4705]
[1764091532985,0.72559411,2940.4,2939.9,0.9355]
[1764091533186,0.22,2940.3,2939.9,0.9355]
[1764091533384,3.40072866,2940.6,2940.0,0.465]
[1764091533583,0.5364606,2940.5,2940.0,0.465]
[1764091533785,0.5364606,2940.5,2940.1,0.186]
[1764091533786,0.22,2940.5,2940.1,0.186]
[1764091534082,0.94559411,2940.5,2940.1,0.186]
[1764091534283,0.91417756,2941.1,2940.4,0.4705]
[1764091534284,3.40039347,2940.9,2940.4,0.4705]
[1764091534585,1.26232691,2940.8,2940.5,0.4705]
[1764091534903,1.26232691,2940.8,2940.2,0.465]
[1764091534904,0.405504,2940.7,2940.2,0.465]
[1764091535103,0.002,2940.4,2940.2,0.465]
[1764091535283,0.22,2940.3,2939.0,3.40247954]
[1764091535485,3.62101928,2940.3,2939.7,0.465]
[1764091536723,0.22,2940.3,2939.7,0.465]
[1764091536893,3.62102689,2940.3,2939.7,0.465]
[1764091537099,0.31747584,2940.2,2939.7,0.465]
[1764091537498,0.22,2940.3,2940.1,0.4705]
[1764091537695,0.22,2940.2,2939.7,3.86670042]
[1764091537905,0.22,2940.2,2939.8,0.465]
[1764091538515,4.12852181,2940.4,2940.1,0.6565]
[1764091538516,0.405504,2940.3,2940.1,0.6565]
[1764091538733,0.72759411,2940.4,2940.1,0.6565]
[1764091538734,0.31768301,2940.2,2940.1,0.6565]
[1764091539035,0.22,2940.2,2940.1,0.186]
[1764091539206,0.53768301,2940.2,2940.1,1.1215]
[1764091539405,0.31768301,2940.2,2940.1,1.1215]
[1764091539747,0.002,2940.4,2940.1,1.1215]
[1764091539748,0.002,2940.4,2940.1,4.52274485]
[1764091540048,0.002,2940.4,2940.3,0.4705]
[1764091540539,0.002,2940.4,2940.3,0.9355]
[1764091541678,0.002,2940.4,2940.3,4.3365135]
[1764091542002,0.002,2940.4,2940.3,0.4705]
[1764091542416,0.002,2940.4,2940.3,0.9355]
[1764091542734,0.002,2940.4,2940.3,4.3365135]
[1764091543203,0.002,2940.4,2940.3,0.4705]
[1764091543404,0.002,2940.4,2940.3,0.9355]
[1764091544530,0.002,2940.4,2940.3,4.3365135]
[1764091547435,0.22,2941.2,2940.4,0.465]
[1764091547612,0.625504,2941.2,2941.1,0.4705]
[1764091547946,0.625504,2941.2,2940.5,3.40078217]
[1764091548248,0.405504,2941.1,2940.4,0.465]
[1764091548747,1.13109811,2941.1,2940.4,0.465]
[1764091548937,1.13109811,2941.1,2940.4,3.86588606]
[1764091549167,1.13109811,2941.1,2940.1,0.186]
[1764091549317,0.405504,2940.9,2940.1,0.186]
[1764091549514,0.405504,2940.9,2940.1,0.651]
[1764091549738,0.405504,2941.0,2940.1,0.651]
[1764091550524,3.40031963,2940.9,2940.2,0.4643]
[1764091550721,0.72559411,2940.9,2940.2,0.4643]
[1764091551817,0.72759411,2940.9,2940.2,0.4643]
[1764091553057,0.22,2940.8,2940.2,3.86541642]
[1764091555560,3.40044235,2940.8,2940.2,3.86541642]
[1764091555856,0.22,2940.7,2940.2,3.86541642]
[1764091556352,0.22,2940.7,2940.3,0.4643]
[1764091556529,3.8812178,2940.7,2940.3,0.4643]
[1764091557657,3.8812178,2940.7,2940.2,3.40111642]
[1764091557860,3.8812178,2940.7,2940.2,3.86541642]
[1764091558060,3.6612178,2940.5,2940.0,3.40133737]
[1764091558265,3.6612178,2940.5,2939.9,0.4643]
[1764091558460,3.6612178,2940.3,2939.6,0.4643]
[1764091558665,0.22,2940.2,2939.6,3.86612337]
[1764091558861,0.22,2940.2,2939.6,7.26794674]
[1764091559030,0.22,2940.2,2939.7,0.4552]
[1764091559832,0.22,2940.2,2939.8,3.40159194]
[1764091560066,0.22,2940.2,2940.1,0.6545]
[1764091560453,0.22,2940.2,2940.1,1.1097]
[1764091560652,4.13286368,2940.7,2940.1,1.1097]
[1764091560653,4.12614938,2940.7,2940.1,1.1097]
[1764091560861,1.27093953,2940.6,2940.1,0.6545]
[1764091561084,0.31805343,2940.5,2940.2,0.4552]
[1764091561276,0.72759411,2940.9,2940.8,0.4693]
[1764091561474,0.54042821,2940.9,2940.8,0.4693]
[1764091561673,1.27417915,2940.9,2940.8,0.4693]
[1764091562057,0.54042821,2940.9,2940.8,0.9245]
[1764091562267,0.32042821,2940.9,2940.8,0.9245]
[1764091562559,0.91733162,2941.5,2941.1,0.6545]
[1764091562560,0.002,2941.5,2941.1,0.6545]
[1764091562872,0.002,2941.5,2941.4,0.4693]
[1764091563070,0.002,2941.5,2941.4,0.9245]
[1764091563273,0.002,2941.5,2941.4,1.1445]
[1764091564153,0.002,2941.5,2941.4,5.26983572]
[1764091564981,0.002,2941.5,2941.4,5.04983572]
[1764091565285,0.002,2941.5,2941.4,5.26983572]
[1764091569886,1.13109811,2941.3,2940.2,0.4552]
[1764091570085,3.45258983,2941.5,2940.3,0.48921013]
[1764091570288,0.002,2941.5,2941.4,0.4693]
[1764091570783,0.002,2941.5,2941.4,0.9245]
[1764091571487,0.002,2941.5,2941.4,4.32424161]
[1764091571783,0.002,2941.5,2941.4,4.54424161]
[1764091573890,0.002,2941.5,2941.4,0.4693]
[1764091574055,0.002,2941.5,2941.4,0.6893]
[1764091574262,0.002,2941.5,2941.4,1.1445]
[1764091574663,0.002,2941.5,2941.4,0.4693]
[1764091574863,0.002,2941.5,2941.4,0.6893]
[1764091575374,0.002,2941.5,2941.4,4.08904161]
[1764091575783,0.002,2941.5,2941.4,4.54424161]
[1764091576863,0.002,2941.5,2941.4,4.08904161]
[1764091577204,0.002,2941.5,2941.4,4.32424161]
[1764091577359,0.002,2941.5,2941.4,4.54424161]
[1764091579066,0.002,2941.5,2940.5,0.4552]
[1764091579067,0.2273,2941.5,2940.5,0.4552]
[1764091579271,0.3235,2941.5,2940.6,0.1852]
[1764091579468,0.3235,2941.5,2940.2,7.25742624]
[1764091579469,0.3235,2941.5,2940.5,0.22]
[1764091579703,7.12287258,2941.5,2940.6,6.80133306]
[1764091579912,6.80137258,2941.5,2940.6,3.40066653]
[1764091580409,3.40168629,2941.5,2940.7,0.22]
[1764091580570,0.3224,2941.4,2940.7,0.22]
[1764091581079,1.04789411,2941.4,2940.5,3.87306161]
[1764091581289,1.04789411,2941.4,2940.6,0.22]
[1764091581667,3.3998572,2941.3,2940.7,3.40055088]
[1764091581879,0.72559411,2941.4,2940.6,7.02129114]
[1764091582079,0.72559411,2941.4,2940.6,7.49359114]
[1764091582287,0.72559411,2941.4,2940.7,0.4723]
[1764091583180,0.72559411,2941.4,2940.8,3.40043525]
[1764091583510,3.39975902,2941.4,2940.8,3.40043525]
[1764091584711,0.4824,2940.9,2940.2,3.40112917]
[1764091584905,0.4824,2940.9,2940.5,0.22]
[1764091585108,0.1601,2940.9,2940.5,0.22]
[1764091585420,0.1601,2940.9,2940.6,3.40066653]
[1764091585840,0.3214,2940.7,2940.6,0.001]
[1764091585985,5.959894,2940.7,2940.6,0.001]
[1764091586185,4.339624,2940.7,2940.6,0.001]
[1764091586391,3.323004,2940.7,2940.6,0.001]
[1764091587316,6.72355488,2940.7,2940.6,0.001]
[1764091587516,7.44914899,2940.7,2940.6,0.001]
[1764091588916,16.78935951,2940.7,2940.6,0.001]
[1764091589121,16.55315951,2940.7,2940.6,0.001]
[1764091589322,15.54125351,2940.7,2940.6,0.001]
[1764091589706,12.96506151,2940.7,2940.6,0.001]
[1764091589928,7.66155499,2940.7,2940.6,0.001]
[1764091590103,8.39240615,2940.7,2940.6,0.001]
[1764091590426,12.63386508,2940.7,2940.6,0.001]
[1764091590794,13.3644645,2940.7,2940.6,0.001]
[1764091590994,23.8761465,2940.7,2940.6,0.001]
[1764091591293,23.14554708,2940.7,2940.6,0.001]
[1764091591493,22.10044708,2940.7,2940.6,0.001]
[1764091591694,21.39765108,2940.7,2940.6,0.001]
[1764091592093,28.88839825,2940.7,2940.6,0.001]
[1764091592319,23.63859525,2940.7,2940.6,0.001]
[1764091592537,14.39959325,2940.7,2940.6,0.001]
[1764091593140,20.03240425,2940.7,2940.6,0.001]
[1764091593305,19.30201208,2940.7,2940.6,0.001]
[1764091593997,19.30201208,2940.7,2940.4,0.001]
[1764091593998,18.511851,2940.5,2940.4,0.001]
[1764091594195,19.58050142,2940.5,2940.4,0.001]
[1764091594506,19.90280142,2940.5,2940.4,0.001]
[1764091594838,0.405504,2940.2,2940.1,0.001]
[1764091595135,0.405504,2940.2,2939.9,0.001]
[1764091595136,4.82009811,2940.0,2939.9,0.001]
[1764091595431,19.33744511,2939.7,2939.6,0.001]
[1764091595596,24.7507552,2939.7,2939.6,0.001]
[1764091595797,25.0730552,2939.7,2939.6,0.001]
[1764091596014,24.82018656,2939.7,2939.6,0.001]
[1764091596212,29.34056255,2939.7,2939.6,0.001]
[1764091596915,0.91163917,2940.4,2939.6,0.9279]
[1764091597103,2.72319609,2941.2,2939.6,0.9279]
[1764091597104,0.88986755,2941.3,2940.3,0.4546]
[1764091597308,3.3999728,2941.2,2940.5,0.4546]
[1764091597693,3.3999728,2941.2,2940.5,0.9269]
[1764091598058,3.40178444,2941.4,2940.6,3.40066653]
[1764091598059,0.002,2941.4,2940.6,3.40066653]
[1764091598218,0.002,2941.4,2940.6,7.27363306]
[1764091598414,0.002,2941.4,2940.7,0.4723]
[1764091599056,3.40177952,2941.4,2940.7,0.4723]
[1764091599550,0.72559411,2941.3,2940.1,0.6539]
[1764091599729,0.22,2941.2,2940.2,7.27455834]
[1764091599926,0.405504,2941.1,2940.2,7.27455834]
[1764091600224,0.405504,2941.1,2940.3,0.4723]
[1764091600841,3.80562554,2941.1,2940.3,0.4723]
[1764091601213,0.405504,2941.1,2940.3,0.4723]
[1764091601852,0.3855,2940.4,2939.6,0.001]
[1764091602028,1.13109811,2940.5,2939.8,0.4723]
[1764091602229,4.53194252,2940.5,2939.8,0.4723]
[1764091602727,4.53194252,2940.5,2939.8,3.87388833]
[1764091603335,4.53194252,2940.5,2939.9,0.001]
[1764091603535,0.94559411,2940.6,2939.9,0.4733]
[1764091603961,0.72559411,2940.5,2939.9,0.4733]
[1764091604132,0.22,2940.6,2940.0,6.80272108]
[1764091604337,0.72559411,2940.8,2940.5,0.6362]
[1764091605858,4.12609734,2940.8,2940.5,1.1085]
[1764091606058,4.12609734,2940.8,2940.5,0.6362]
[1764091606573,0.72559411,2940.7,2940.5,0.6362]
[1764091608468,4.12620533,2940.7,2940.3,0.1816]
[1764091608833,0.22,2940.9,2940.6,0.4546]
[1764091609033,0.94559411,2940.9,2940.6,0.4546]
[1764091609245,0.94559411,2940.9,2940.6,0.9269]
[1764091609568,0.22,2940.9,2940.8,0.4546]
[1764091609777,0.22,2940.9,2940.6,0.4723]
[1764091609936,0.002,2941.1,2940.8,0.4546]
[1764091610267,0.407504,2941.1,2940.8,0.4546]
[1764091610465,0.002,2941.1,2940.8,0.9255]
[1764091610965,0.002,2941.1,2940.8,0.4546]
[1764091611469,0.002,2941.1,2940.8,0.9255]
[1764091611865,0.3871,2940.9,2940.3,3.58255688]
[1764091612362,0.3871,2940.9,2940.3,4.05345688]
[1764091612667,0.0648,2940.9,2940.3,4.05345688]
[1764091612869,0.002,2941.1,2940.3,7.45447038]
[1764091613072,3.80765298,2941.1,2940.3,6.98357038]
[1764091613276,3.80765298,2941.1,2940.4,0.4709]
[1764091613468,0.407504,2941.1,2940.4,0.4709]
[1764091613661,3.80764256,2941.1,2940.4,0.4709]
[1764091613863,0.002,2941.1,2940.4,0.4709]
[1764091614375,0.002,2941.1,2941.0,0.4993]
[1764091615077,0.002,2941.1,2941.0,4.37040401]
[1764091615945,0.002,2941.1,2941.0,4.59040401]
[1764091621153,0.002,2941.1,2941.0,5.31599812]
[1764091621385,0.002,2941.4,2941.1,0.72559411]
[1764091621589,0.002,2941.4,2941.3,0.6508]
[1764091621990,0.002,2941.4,2941.3,1.1422]
[1764091622872,0.002,2941.4,2941.3,1.3622]
[1764091623267,0.002,2941.4,2941.3,4.7620572]
[1764091624396,0.002,2941.4,2941.3,0.9497]
[1764091624693,0.002,2941.4,2941.3,0.4583]
[1764091624863,0.002,2941.4,2941.3,0.9497]
[1764091625268,0.002,2941.4,2940.9,3.40020555]
[1764091625269,0.2274,2941.4,2940.9,3.40020555]
[1764091625601,0.2274,2941.4,2940.8,3.59285382]
[1764091626401,0.3214,2941.3,2940.7,3.40049722]
[1764091626575,0.3214,2941.3,2940.5,3.40078217]
[1764091626766,0.002,2941.4,2940.5,3.40078217]
[1764091627103,0.405504,2941.3,2940.5,3.40078217]
[1764091627268,0.405504,2941.3,2940.4,6.80179566]
[1764091627606,3.80541428,2941.3,2940.4,6.80179566]
[1764091627898,7.52762456,2941.3,2940.4,3.40089783]
[1764091628098,4.12771428,2941.3,2940.4,6.80179566]
[1764091628286,1.45339811,2941.3,2940.4,7.29319566]
[1764091628490,1.45339811,2941.3,2940.5,0.4914]
[1764091628491,1.13109811,2941.3,2940.5,0.4914]
[1764091629089,0.72559411,2941.3,2940.5,0.4914]
[1764091629602,3.39989754,2941.3,2940.6,3.40066653]
[1764091630106,3.72219754,2941.3,2940.5,3.40075788]
[1764091630404,0.3223,2941.2,2940.5,3.40075788]
[1764091630808,0.3223,2941.2,2940.5,6.80154005]
[1764091631307,1.13309811,2941.4,2940.5,6.80154005]
[1764091631608,3.72226697,2941.3,2940.5,6.80154005]
[1764091631795,7.12223394,2941.3,2940.5,3.40075788]
[1764091631974,7.12223394,2941.3,2940.5,6.80154005]
[1764091632601,1.13309811,2941.4,2940.5,6.80154005]
[1764091632805,4.53285673,2941.4,2940.6,0.4914]
[1764091633003,0.72559411,2941.3,2940.6,0.4914]
[1764091633809,0.72559411,2941.3,2940.7,6.80110176]
[1764091634005,0.72559411,2941.3,2940.7,3.40055088]
[1764091634708,3.39986147,2941.3,2940.7,3.40055088]
[1764091635107,3.39986147,2941.3,2940.6,0.4914]
[1764091635108,0.2902,2940.8,2940.3,0.1816]
[1764091635279,0.2902,2940.8,2940.4,6.80177305]
[1764091636116,0.2902,2940.8,2940.4,7.29317305]
[1764091636320,1.04789411,2941.3,2940.5,0.4914]
[1764091636491,0.72559411,2941.3,2940.7,0.4583]
[1764091638197,4.1255366,2941.3,2940.7,3.85883386]
[1764091638404,4.85517789,2941.4,2940.7,3.85883386]
[1764091639123,0.2902,2940.8,2940.5,3.4006888]
[1764091639353,0.0032,2940.7,2940.5,3.4006888]
[1764091639822,0.2222,2940.6,2940.4,0.001]
[1764091640014,0.0054,2940.5,2940.4,0.001]
[1764091641804,3.46528478,2940.8,2940.4,0.001]
[1764091642399,3.78758478,2940.8,2940.4,0.001]
[1764091642604,0.79039411,2940.8,2940.4,0.001]
[1764091643000,0.2254,2940.5,2940.4,0.001]
[1764091643522,3.78753949,2940.8,2940.4,0.001]
[1764091643834,0.2254,2940.5,2940.4,0.001]
[1764091644051,3.46523949,2940.8,2940.4,0.001]
[1764091644223,3.46523949,2940.8,2940.4,0.4558]
[1764091644728,0.79039411,2940.8,2940.4,0.001]
[1764091645055,0.0648,2940.8,2940.4,0.001]
[1764091645514,0.79039411,2940.8,2940.4,0.001]
[1764091646126,3.46523571,2940.8,2940.4,0.001]
[1764091646453,0.0648,2940.8,2940.4,0.001]
[1764091648054,3.94150673,2941.0,2940.7,0.4548]
[1764091648055,0.219,2941.0,2940.7,0.4548]
[1764091648267,0.219,2941.0,2940.8,0.4548]
[1764091648766,0.219,2941.0,2940.5,3.88345268]
[1764091649152,0.2254,2940.6,2940.4,0.001]
[1764091649329,0.0023,2940.5,2940.4,0.001]
[1764091649651,0.407804,2940.5,2940.4,0.001]
[1764091649861,0.730104,2940.5,2940.4,0.001]
[1764091650083,6.69106011,2940.5,2940.4,0.001]
[1764091650373,8.51554906,2940.5,2940.4,0.001]
[1764091650525,9.17757123,2940.5,2940.4,0.001]
[1764091650859,26.49610723,2940.5,2940.4,0.001]
[1764091651042,22.90710723,2940.5,2940.4,0.001]
[1764091651259,22.90710723,2940.5,2939.9,0.001]
[1764091651260,0.405504,2940.3,2939.9,0.001]
[1764091651559,0.72559411,2940.4,2939.9,0.001]
[1764091651560,6.210816,2940.0,2939.9,0.001]
[1764091651731,7.68501606,2940.0,2939.9,0.001]
[1764091651930,8.00731606,2940.0,2939.9,0.001]
[1764091652732,17.4972236,2940.0,2939.9,0.001]
[1764091653133,17.4972236,2940.0,2939.6,0.001]
[1764091653134,1.13109811,2939.9,2939.6,0.001]
[1764091653332,1.13109811,2939.9,2939.5,0.001]
[1764091653333,4.72009811,2939.6,2939.5,0.001]
[1764091653534,25.01099184,2939.6,2939.5,0.001]
[1764091653774,25.01099184,2939.6,2938.0,0.1801]
[1764091653775,18.106347,2939.5,2937.0,0.17790011]
[1764091653971,18.106347,2939.5,2936.1,3.03470853]
[1764091653972,0.405504,2937.0,2936.1,2.41790606]
[1764091654275,0.405504,2937.0,2935.0,0.1801]
[1764091654276,2.21531,2935.8,2935.0,0.1801]
[1764091654426,2.21531,2935.8,2934.9,0.1801]
[1764091654427,2.18378,2935.6,2934.9,0.1801]
[1764091654627,4.53772575,2935.5,2934.9,0.1801]
[1764091655030,4.53772575,2935.5,2934.7,0.1801]
[1764091655226,3.62534542,2935.7,2934.7,0.1801]
[1764091655227,0.219,2935.4,2934.7,0.1801]
[1764091655462,0.219,2935.4,2934.7,0.6628]
[1764091655768,0.219,2935.4,2934.7,0.1801]
[1764091655932,7.8543529,2935.8,2934.7,0.1801]
[1764091655933,4.44812069,2935.8,2934.7,0.1801]
[1764091656130,0.1562,2935.7,2934.6,0.1801]
[1764091656358,0.48948298,2936.1,2934.6,0.1801]
[1764091656665,0.405504,2935.9,2934.8,3.40738721]
[1764091656886,0.219,2935.8,2934.9,0.4827]
[1764091657043,0.405504,2936.0,2934.9,0.4827]
[1764091657044,0.219,2935.7,2934.9,0.4827]
[1764091657675,0.22,2935.6,2934.9,0.4827]
[1764091657832,3.72159925,2936.6,2934.9,0.4827]
[1764091657833,0.22,2935.5,2934.9,0.4827]
[1764091658183,0.405504,2936.2,2934.9,0.4827]
[1764091658184,0.22,2935.7,2934.9,0.4827]
[1764091658364,5.79509217,2936.9,2935.4,0.4548]
[1764091658668,2.08715,2936.7,2935.7,3.4063426]
[1764091658875,0.405504,2936.6,2935.6,4.04135144]
[1764091659035,0.22,2936.5,2935.7,0.4827]
[1764091659448,0.405504,2936.6,2935.7,0.4827]
[1764091659888,0.405504,2936.4,2935.6,0.1801]
[1764091660539,0.405504,2936.4,2935.7,0.4827]
[1764091660876,1.13109811,2936.4,2935.7,0.4827]
[1764091661078,1.76748822,2936.9,2935.7,3.88903765]
[1764091661258,1.76748822,2936.9,2935.7,7.29538025]
[1764091661580,0.94559411,2936.8,2935.8,0.4827]
[1764091661778,0.72559411,2936.6,2935.6,0.1801]
[1764091662013,0.405504,2936.4,2935.6,0.1801]
[1764091662161,0.22,2936.3,2935.6,0.1801]
[1764091663180,0.22,2936.3,2935.4,3.58675121]
[1764091663568,0.22,2936.3,2935.5,0.4827]
[1764091664814,3.62565213,2936.3,2935.5,0.4827]
[1764091664979,0.22,2936.3,2935.5,0.4827]
[1764091665177,0.22,2936.3,2935.5,3.88923497]
[1764091665592,0.22,2936.3,2935.5,0.4827]
[1764091665917,0.22,2936.3,2935.6,0.4827]
[1764091666771,0.53429401,2936.7,2935.6,0.51676458]
[1764091666971,0.405504,2936.5,2935.7,6.8126852]
[1764091667294,0.22,2936.4,2935.7,6.8126852]
[1764091667491,0.22,2936.4,2935.8,0.4827]
[1764091667680,0.22,2936.3,2935.8,0.4827]
[1764091667875,0.22,2936.2,2935.8,0.4827]
[1764091668081,0.22,2936.2,2935.5,3.40657304]
[1764091668294,0.22,2936.2,2935.5,3.88927304]
[1764091668603,0.22,2936.2,2935.6,0.4827]
[1764091668968,0.22,2936.2,2936.1,0.6349]
[1764091669602,0.22,2936.2,2935.7,3.40623332]
[1764091669803,0.22,2936.2,2935.8,0.4827]
[1764091670389,0.22,2936.2,2936.1,0.4548]
[1764091672172,0.22,2936.5,2936.1,4.53536073]
[1764091672407,0.22,2936.5,2935.7,0.4923]
[1764091673805,0.22,2936.5,2935.8,6.81245316]
[1764091674106,0.22,2936.5,2935.8,3.40622658]
[1764091674308,0.22,2936.5,2935.8,3.89852658]
[1764091675169,0.22,2936.5,2935.9,0.4923]
[1764091675795,0.22,2936.5,2935.9,3.8984062]
[1764091676199,3.81061033,2936.8,2936.0,0.4923]
[1764091676200,0.22,2936.8,2936.0,0.4923]
[1764091676400,0.405504,2936.7,2935.8,0.4923]
[1764091676708,0.22,2936.8,2935.8,0.4923]
[1764091676913,0.405504,2936.9,2935.8,0.4923]
[1764091676914,0.22,2936.7,2935.8,0.4923]
[1764091677907,0.22,2936.7,2935.9,6.81222112]
[1764091678215,3.40485862,2937.0,2935.9,6.81222112]
[1764091678216,3.81037853,2937.0,2935.9,6.81222112]
[1764091678510,1.22061371,2937.7,2935.9,6.81222112]
[1764091678511,0.91546028,2937.7,2936.0,0.4923]
[1764091678684,0.6951471,2937.6,2937.1,0.4953]
[1764091678886,0.3801,2937.6,2937.1,0.4953]
[1764091679414,0.31571949,2937.5,2937.2,0.4897]
[1764091679616,0.22,2937.5,2937.2,0.4897]
[1764091679917,3.40344562,2938.2,2937.4,0.4552]
[1764091679918,0.22,2937.6,2937.4,0.4552]
[1764091680280,0.31623948,2937.5,2937.4,0.4552]
[1764091680600,0.31623948,2937.5,2937.4,0.4897]
[1764091680792,0.72849718,2937.8,2937.4,7.75364242]
[1764091680793,0.22,2937.8,2937.4,7.75364242]
[1764091680987,0.31621404,2937.7,2937.4,3.89407121]
[1764091681206,0.31621404,2937.7,2936.9,3.58726808]
[1764091681207,0.31621404,2937.7,2936.9,0.1824]
[1764091681402,0.31621404,2937.6,2936.9,0.1824]
[1764091681592,0.22,2937.8,2936.6,0.674]
[1764091681593,0.405504,2937.4,2936.6,0.674]
[1764091681913,0.53621404,2937.3,2936.7,0.4897]
[1764091682212,0.31621404,2937.2,2935.8,3.58860381]
[1764091682400,1.45012912,2937.1,2936.2,0.4897]
[1764091682602,0.405504,2936.9,2936.2,0.4897]
[1764091682786,0.53621404,2936.8,2935.9,7.30192112]
[1764091682988,0.31621404,2936.7,2936.0,0.4897]
[1764091683186,0.88851108,2936.9,2936.0,0.4897]
[1764091683187,1.04462512,2936.6,2936.0,0.4897]
[1764091683414,1.04462512,2936.5,2936.0,0.4897]
[1764091683575,0.22,2936.8,2936.0,0.4897]
[1764091683576,0.31621404,2936.4,2936.0,0.4897]
[1764091683778,0.31621404,2936.3,2936.0,0.4897]
[1764091683980,0.73285509,2936.7,2936.1,6.81175708]
[1764091684191,0.31805823,2936.6,2936.1,6.81175708]
[1764091684391,0.31805823,2936.5,2936.2,0.4897]
[1764091684605,0.31805823,2936.4,2936.2,0.4897]
[1764091684824,0.405504,2937.1,2936.2,0.4897]
[1764091684825,0.31805823,2936.3,2936.2,0.4897]
[1764091685208,0.31805823,2936.3,2936.2,0.9449]
[1764091686015,0.31805823,2936.3,2936.2,4.35066255]
[1764091686494,0.31805823,2936.3,2936.2,3.86096255]
[1764091686698,0.31805823,2936.3,2936.2,4.35066255]
[1764091687717,1.13546028,2937.1,2936.2,11.16218765]
[1764091687918,1.05201218,2937.0,2936.7,6.81036536]
[1764091688103,0.22,2937.2,2936.9,0.4552]
[1764091688302,1.05205532,2937.1,2936.9,0.4552]
[1764091688520,1.05205532,2937.0,2936.9,0.4552]
[1764091688833,0.31841262,2937.0,2936.6,6.81050441]
[1764091689134,0.31841262,2936.9,2936.7,0.4897]
[1764091689330,0.31841262,2936.8,2936.7,0.4897]
[1764091689536,0.31841262,2936.8,2935.8,0.1824]
[1764091689830,1.05188147,2936.7,2936.2,0.4897]
[1764091690035,0.31841262,2936.6,2936.3,3.40564656]
[1764091690206,0.31841262,2936.5,2936.3,3.40564656]
[1764091690533,1.64105439,2937.1,2936.3,3.40564656]
[1764091690534,0.31841262,2936.4,2936.3,3.40564656]
[1764091691035,0.31841262,2936.4,2936.3,4.35054656]
[1764091692660,0.73351766,2936.9,2936.3,7.75619312]
[1764091692827,0.31838356,2936.8,2936.4,0.4897]
[1764091693026,0.31838356,2936.7,2936.4,0.4897]
[1764091693233,0.31838356,2936.6,2936.4,0.4897]
[1764091693459,0.31838356,2936.5,2936.4,0.4897]
[1764091693866,0.31838356,2936.5,2936.4,0.9449]
[1764091694153,0.31838356,2936.5,2936.4,4.35043058]
[1764091695742,0.91546028,2937.4,2936.4,11.16149174]
[1764091695933,1.05207568,2937.3,2937.0,0.4552]
[1764091696143,1.05207568,2937.3,2937.0,0.9449]
[1764091696144,0.31843163,2937.2,2937.0,0.9449]
[1764091696343,0.31843163,2937.1,2936.6,10.21589592]
[1764091696555,0.31843163,2937.0,2936.6,6.81059728]
[1764091696724,0.22,2937.5,2936.2,6.8115251]
[1764091696725,0.31843163,2936.9,2936.2,6.8115251]
[1764091697051,0.31843163,2936.8,2936.3,0.4897]
[1764091697232,0.31843163,2936.7,2936.3,0.4897]
[1764091697432,0.72559411,2937.2,2936.3,0.4897]
[1764091697664,1.05219683,2937.1,2936.3,0.4897]
[1764091697839,1.05219683,2937.0,2936.3,0.4897]
[1764091698036,1.05219683,2936.9,2936.3,0.4897]
[1764091698254,0.31848818,2936.8,2936.3,0.4897]